fUST/lending_fUST_20240705
["ID","MTS","AMOUNT","RATE_DAILY","PERIOD"]
[331211084,1720134661523,-500.0,0.00016164,2]
[331211085,1720134661533,-465.66,0.00016164,2]
[331211086,1720134661542,-500.0,0.00016164,2]
[331211087,1720134661553,-500.0,0.00016164,2]
[331211088,1720134661562,-516.68,0.00016164,2]
[331211089,1720134661571,-1799.29,0.00016164,2]
[331211090,1720134661583,-649.1,0.00016164,2]
[331211091,1720134661595,-500.0,0.00016164,2]
[331211092,1720134661606,-500.0,0.00016164,2]
[331211093,1720134661616,-500.0,0.00016164,2]
[331211094,1720134661627,-500.0,0.00016164,2]
[331211095,1720134661636,-5473.98,0.00016164,2]
[331211096,1720134661647,-4133.87,0.00016164,2]
[331211097,1720134661656,-57212.27342122,0.00016254,2]
[331211098,1720134661725,-2510.04,0.00016254,2]
[331211099,1720134661734,-2510.04,0.00016254,2]
[331211100,1720134661744,-17247.35351992,0.00016255,2]
[331211101,1720134661754,-42225.49623484,0.00016255,2]
[331211102,1720134661765,-450.0,0.00016386,2]
[331211103,1720134661775,-500.0,0.00016436,2]
[331211104,1720134661786,-500.0,0.00016436,2]
[331211105,1720134661796,-500.0,0.00016436,2]
[331211106,1720134661805,-500.0,0.00016436,2]
[331211107,1720134661816,-500.0,0.00016436,2]
[331211108,1720134661827,-500.0,0.00016436,2]
[331211109,1720134661837,-500.0,0.00016436,2]
[331211110,1720134661847,-500.0,0.00016436,2]
[331211111,1720134661856,-876.25,0.00016437,2]
[331211112,1720134661866,-718.94,0.00016437,2]
[331211113,1720134661877,-500.0,0.00016437,2]
[331211114,1720134661887,-500.0,0.00016438,2]
[331211115,1720134661897,-4546.0,0.00016438,2]
[331211116,1720134661906,-500.0,0.00016438,2]
[331211117,1720134661915,-500.0,0.00016438,2]
[331211118,1720134661924,-507.49,0.00016438,2]
[331211119,1720134661933,-500.0,0.00016438,2]
[331211120,1720134661942,-500.0,0.00016438,2]
[331211121,1720134661951,-500.0,0.00016438,2]
[331211122,1720134661959,-591.07,0.00016438,2]
[331211123,1720134661969,-1105.99,0.00016438,2]
[331211124,1720134661979,-500.0,0.00016438,2]
[331211125,1720134661988,-558.69,0.00016438,2]
[331211126,1720134661998,-500.0,0.00016438,2]
[331211127,1720134662008,-565.12,0.00016438,2]
[331211128,1720134662018,-500.0,0.00016438,2]
[331211129,1720134662028,-2421.64,0.00016438,2]
[331211130,1720134662038,-500.0,0.00016438,2]
[331211131,1720134662047,-548.33,0.00016438,2]
[331211132,1720134662056,-500.0,0.00016438,2]
[331211133,1720134662065,-500.0,0.00016438,2]
[331211134,1720134662074,-2331.12,0.00016438,2]
[331211135,1720134662084,-535.1,0.00016438,2]
[331211136,1720134662095,-992.31,0.00016438,2]
[331211137,1720134662104,-500.0,0.00016438,2]
[331211138,1720134662114,-500.0,0.00016438,2]
[331211139,1720134662124,-629.67,0.00016438,2]
[331211140,1720134662133,-595.54,0.00016438,2]
[331211141,1720134662142,-500.0,0.00016438,2]
[331211142,1720134662152,-500.0,0.00016438,2]
[331211143,1720134662161,-878.92,0.00016438,2]
[331211144,1720134662171,-2562.9,0.00016438,2]
[331211145,1720134662180,-500.0,0.00016438,2]
[331211146,1720134662190,-898.22,0.00016438,2]
[331211147,1720134662200,-500.0,0.00016438,2]
[331211148,1720134662210,-1359.2,0.00016438,2]
[331211149,1720134662218,-500.0,0.00016438,2]
[331211150,1720134662228,-500.0,0.00016438,2]
[331211151,1720134662237,-516.68,0.00016438,2]
[331211152,1720134662246,-1799.29,0.00016438,2]
[331211153,1720134662256,-649.1,0.00016438,2]
[331211154,1720134662264,-500.0,0.00016438,2]
[331211155,1720134662274,-5473.98,0.00016438,2]
[331211156,1720134662283,-4133.87,0.00016438,2]
[331211157,1720134662292,-166.666666,0.00016438,2]
[331211158,1720134662301,-500.0,0.0001671,2]
[331211159,1720134662310,-500.0,0.0001671,2]
[331211160,1720134662320,-500.0,0.0001671,2]
[331211161,1720134662329,-566.13,0.0001671,2]
[331211162,1720134662339,-500.0,0.0001671,2]
[331211163,1720134662348,-500.0,0.0001671,2]
[331211164,1720134662358,-500.0,0.0001671,2]
[331211165,1720134662367,-500.0,0.0001671,2]
[331211166,1720134662377,-2510.04,0.0001671,2]
[331211167,1720134662386,-876.25,0.00016711,2]
[331211168,1720134662396,-718.94,0.00016711,2]
[331211169,1720134662405,-500.0,0.00016711,2]
[331211170,1720134662414,-500.0,0.00016712,2]
[331211171,1720134662423,-4546.0,0.00016712,2]
[331211172,1720134662433,-500.0,0.00016712,2]
[331211173,1720134662442,-507.49,0.00016712,2]
[331211174,1720134662452,-500.0,0.00016712,2]
[331211175,1720134662463,-500.0,0.00016712,2]
[331211176,1720134662473,-500.0,0.00016712,2]
[331211177,1720134662482,-591.07,0.00016712,2]
[331211178,1720134662491,-1105.99,0.00016712,2]
[331211179,1720134662501,-500.0,0.00016712,2]
[331211180,1720134662511,-500.0,0.00016712,2]
[331211181,1720134662520,-565.12,0.00016712,2]
[331211182,1720134662531,-588.15,0.00016712,2]
[331211183,1720134662541,-2421.64,0.00016712,2]
[331211184,1720134662551,-500.0,0.00016712,2]
[331211185,1720134662560,-548.33,0.00016712,2]
[331211186,1720134662570,-381.01,0.00016712,2]
[331211187,1720134662581,-500.0,0.00016712,2]
[331211188,1720134662594,-2331.12,0.00016712,2]
[331211189,1720134662604,-535.1,0.00016712,2]
[331211190,1720134662614,-992.31,0.00016712,2]
[331211191,1720134662624,-500.0,0.00016712,2]
[331211192,1720134662635,-500.0,0.00016712,2]
[331211193,1720134662647,-595.54,0.00016712,2]
[331211194,1720134662659,-500.0,0.00016712,2]
[331211195,1720134662671,-500.0,0.00016712,2]
[331211196,1720134662683,-878.92,0.00016712,2]
[331211197,1720134662692,-2562.9,0.00016712,2]
[331211198,1720134662702,-500.0,0.00016712,2]
[331211199,1720134662713,-898.22,0.00016712,2]
[331211200,1720134662723,-500.0,0.00016712,2]
[331211201,1720134662732,-500.0,0.00016712,2]
[331211202,1720134662742,-1359.2,0.00016712,2]
[331211203,1720134662752,-500.0,0.00016712,2]
[331211204,1720134662763,-516.68,0.00016712,2]
[331211205,1720134662773,-1799.29,0.00016712,2]
[331211206,1720134662783,-649.1,0.00016712,2]
[331211207,1720134662793,-500.0,0.00016712,2]
[331211208,1720134662803,-5473.98,0.00016712,2]
[331211209,1720134662813,-4133.87,0.00016712,2]
[331211210,1720134662822,-530.55105603,0.00016722,2]
[331211211,1720134662833,-2510.04,0.00016733,2]
[331211212,1720134662843,-2510.04,0.00016733,2]
[331211213,1720134662853,-2510.04,0.00016733,2]
[331211214,1720134662862,-2510.04,0.00016733,2]
[331211215,1720134662872,-2510.04,0.00016733,2]
[331211216,1720134662882,-2510.1860742,0.00016733,2]
[331211217,1720134662950,-166.666666,0.00016823,2]
[331211218,1720134662961,-320.92099788,0.00016934,2]
[331211219,1720134662971,-500.0,0.00016984,2]
[331211220,1720134662980,-500.0,0.00016984,2]
[331211221,1720134662990,-340.86,0.00016984,2]
[331211222,1720134663000,-500.0,0.00016984,2]
[331211223,1720134663009,-500.0,0.00016984,2]
[331211224,1720134663020,-500.0,0.00016984,2]
[331211225,1720134663030,-876.25,0.00016985,2]
[331211226,1720134663042,-718.94,0.00016985,2]
[331211227,1720134663052,-500.0,0.00016985,2]
[331211228,1720134663061,-269.0,0.00016986,2]
[331211229,1720134663071,-4546.0,0.00016986,2]
[331211230,1720134663080,-500.0,0.00016986,2]
[331211231,1720134663089,-507.49,0.00016986,2]
[331211232,1720134663098,-500.0,0.00016986,2]
[331211233,1720134663107,-500.0,0.00016986,2]
[331211234,1720134663117,-591.07,0.00016986,2]
[331211235,1720134663126,-1105.99,0.00016986,2]
[331211236,1720134663135,-500.0,0.00016986,2]
[331211237,1720134663148,-500.0,0.00016986,2]
[331211238,1720134663158,-565.12,0.00016986,2]
[331211239,1720134663167,-2421.64,0.00016986,2]
[331211240,1720134663177,-500.0,0.00016986,2]
[331211241,1720134663186,-548.33,0.00016986,2]
[331211242,1720134663198,-500.0,0.00016986,2]
[331211243,1720134663207,-2331.12,0.00016986,2]
[331211244,1720134663217,-535.1,0.00016986,2]
[331211245,1720134663227,-992.31,0.00016986,2]
[331211246,1720134663237,-500.0,0.00016986,2]
[331211247,1720134663246,-500.0,0.00016986,2]
[331211248,1720134663255,-500.0,0.00016986,2]
[331211249,1720134663264,-595.54,0.00016986,2]
[331211250,1720134663274,-500.0,0.00016986,2]
[331211251,1720134663284,-878.92,0.00016986,2]
[331211252,1720134663294,-2562.9,0.00016986,2]
[331211253,1720134663303,-500.0,0.00016986,2]
[331211254,1720134663313,-898.22,0.00016986,2]
[331211255,1720134663322,-500.0,0.00016986,2]
[331211256,1720134663331,-500.0,0.00016986,2]
[331211257,1720134663340,-1359.2,0.00016986,2]
[331211258,1720134663349,-500.0,0.00016986,2]
[331211259,1720134663359,-516.68,0.00016986,2]
[331211260,1720134663368,-1799.29,0.00016986,2]
[331211261,1720134663377,-649.1,0.00016986,2]
[331211262,1720134663388,-500.0,0.00016986,2]
[331211263,1720134663400,-5473.98,0.00016986,2]
[331211264,1720134663410,-166.666666,0.00017208,2]
[331211265,1720134663419,-500.0,0.00017258,2]
[331211266,1720134663428,-500.0,0.00017258,2]
[331211267,1720134663437,-500.0,0.00017258,2]
[331211268,1720134663448,-500.0,0.00017258,2]
[331211269,1720134663458,-500.0,0.00017258,2]
[331211270,1720134663468,-876.25,0.00017259,2]
[331211271,1720134663477,-718.94,0.00017259,2]
[331211272,1720134663487,-4546.0,0.0001726,2]
[331211273,1720134663496,-157.49,0.0001726,2]
[331211274,1720134663505,-507.49,0.0001726,2]
[331211275,1720134663515,-500.0,0.0001726,2]
[331211276,1720134663523,-500.0,0.0001726,2]
[331211277,1720134663533,-591.07,0.0001726,2]
[331211278,1720134663542,-1105.99,0.0001726,2]
[331211279,1720134663551,-500.0,0.0001726,2]
[331211280,1720134663560,-500.0,0.0001726,2]
[331211281,1720134663569,-565.12,0.0001726,2]
[331211282,1720134663579,-2421.64,0.0001726,2]
[331211283,1720134663589,-500.0,0.0001726,2]
[331211284,1720134663602,-548.33,0.0001726,2]
[331211285,1720134663611,-500.0,0.0001726,2]
[331211286,1720134663620,-2331.12,0.0001726,2]
[331211287,1720134663630,-535.1,0.0001726,2]
[331211288,1720134663639,-992.31,0.0001726,2]
[331211289,1720134663651,-500.0,0.0001726,2]
[331211290,1720134663660,-500.0,0.0001726,2]
[331211291,1720134663670,-500.0,0.0001726,2]
[331211292,1720134663681,-595.54,0.0001726,2]
[331211293,1720134663690,-500.0,0.0001726,2]
[331211294,1720134663699,-878.92,0.0001726,2]
[331211295,1720134663708,-2562.9,0.0001726,2]
[331211296,1720134663717,-500.0,0.0001726,2]
[331211297,1720134663727,-898.22,0.0001726,2]
[331211298,1720134663736,-500.0,0.0001726,2]
[331211299,1720134663746,-500.0,0.0001726,2]
[331211300,1720134663757,-1359.2,0.0001726,2]
[331211301,1720134663767,-500.0,0.0001726,2]
[331211302,1720134663778,-516.68,0.0001726,2]
[331211303,1720134663787,-1799.29,0.0001726,2]
[331211304,1720134663798,-649.1,0.0001726,2]
[331211305,1720134663807,-5473.98,0.0001726,2]
[331211306,1720134663816,-500.0,0.00017532,2]
[331211307,1720134663826,-500.0,0.00017532,2]
[331211308,1720134663836,-500.0,0.00017532,2]
[331211309,1720134663845,-500.0,0.00017532,2]
[331211310,1720134663856,-569.06,0.00017532,2]
[331211311,1720134663866,-876.25,0.00017533,2]
[331211312,1720134663876,-718.94,0.00017533,2]
[331211313,1720134663885,-4546.0,0.00017534,2]
[331211314,1720134663897,-507.49,0.00017534,2]
[331211315,1720134663906,-310.09683546,0.00017534,2]
[331211316,1720134663915,-500.0,0.00017534,2]
[331211317,1720134663924,-591.07,0.00017534,2]
[331211318,1720134663933,-1105.99,0.00017534,2]
[331211319,1720134663942,-370.0,0.00017534,2]
[331211320,1720134663950,-500.0,0.00017534,2]
[331211321,1720134663960,-565.12,0.00017534,2]
[331211322,1720134663969,-2421.64,0.00017534,2]
[331211323,1720134663978,-283.6,0.00017534,2]
[331211324,1720134663987,-548.33,0.00017534,2]
[331211325,1720134663996,-500.0,0.00017534,2]
[331211326,1720134664057,-2331.12,0.00017534,2]
[331211327,1720134664071,-535.1,0.00017534,2]
[331211328,1720134664081,-992.31,0.00017534,2]
[331211329,1720134664092,-500.0,0.00017534,2]
[331211330,1720134664101,-500.0,0.00017534,2]
[331211331,1720134664111,-500.0,0.00017534,2]
[331211332,1720134664120,-595.54,0.00017534,2]
[331211333,1720134664130,-500.0,0.00017534,2]
[331211334,1720134664141,-878.92,0.00017534,2]
[331211335,1720134664153,-2562.9,0.00017534,2]
[331211336,1720134664164,-500.0,0.00017534,2]
[331211337,1720134664175,-898.22,0.00017534,2]
[331211338,1720134664186,-500.0,0.00017534,2]
[331211339,1720134664196,-500.0,0.00017534,2]
[331211340,1720134664205,-1359.2,0.00017534,2]
[331211341,1720134664214,-500.0,0.00017534,2]
[331211342,1720134664223,-516.68,0.00017534,2]
[331211343,1720134664233,-1799.29,0.00017534,2]
[331211344,1720134664244,-649.1,0.00017534,2]
[331211345,1720134664253,-5473.98,0.00017534,2]
[331211346,1720134664262,-166.666666,0.00017592,2]
[331211347,1720134664271,-500.0,0.00017806,2]
[331211348,1720134664280,-320.61,0.00017806,2]
[331211349,1720134664292,-500.0,0.00017806,2]
[331211350,1720134664303,-335.35603896,0.00017806,2]
[331211351,1720134664313,-876.25,0.00017807,2]
[331211352,1720134664321,-718.94,0.00017807,2]
[331211353,1720134664332,-4546.0,0.00017808,2]
[331211354,1720134664342,-507.49,0.00017808,2]
[331211355,1720134664352,-500.0,0.00017808,2]
[331211356,1720134664361,-591.07,0.00017808,2]
[331211357,1720134664370,-1105.99,0.00017808,2]
[331211358,1720134664379,-500.0,0.00017808,2]
[331211359,1720134664389,-565.12,0.00017808,2]
[331211360,1720134664399,-2421.64,0.00017808,2]
[331211361,1720134664408,-548.33,0.00017808,2]
[331211362,1720134664418,-457.09,0.00017808,2]
[331211363,1720134664427,-2331.12,0.00017808,2]
[331211364,1720134664436,-535.1,0.00017808,2]
[331211365,1720134664447,-992.31,0.00017808,2]
[331211366,1720134664456,-500.0,0.00017808,2]
[331211367,1720134664466,-500.0,0.00017808,2]
[331211368,1720134664475,-500.0,0.00017808,2]
[331211369,1720134664484,-595.54,0.00017808,2]
[331211370,1720134664493,-500.0,0.00017808,2]
[331211371,1720134664503,-878.92,0.00017808,2]
[331211372,1720134664512,-2562.9,0.00017808,2]
[331211373,1720134664521,-500.0,0.00017808,2]
[331211374,1720134664531,-898.22,0.00017808,2]
[331211375,1720134664540,-500.0,0.00017808,2]
[331211376,1720134664551,-500.0,0.00017808,2]
[331211377,1720134664560,-1359.2,0.00017808,2]
[331211378,1720134664572,-500.0,0.00017808,2]
[331211379,1720134664582,-516.68,0.00017808,2]
[331211380,1720134664596,-1799.29,0.00017808,2]
[331211381,1720134664605,-649.1,0.00017808,2]
[331211382,1720134664615,-5473.98,0.00017808,2]
[331211383,1720134664626,-166.666666,0.00017977,2]
[331211384,1720134664635,-204.83768925,0.00018,2]
[331211385,1720134664645,-500.0,0.0001808,2]
[331211386,1720134664655,-500.0,0.0001808,2]
[331211387,1720134664665,-876.25,0.00018081,2]
[331211388,1720134664675,-718.94,0.00018081,2]
[331211389,1720134664685,-4546.0,0.00018082,2]
[331211390,1720134664694,-507.49,0.00018082,2]
[331211391,1720134664704,-500.0,0.00018082,2]
[331211392,1720134664714,-591.07,0.00018082,2]
[331211393,1720134664722,-1105.99,0.00018082,2]
[331211394,1720134664732,-500.0,0.00018082,2]
[331211395,1720134664742,-565.12,0.00018082,2]
[331211396,1720134664751,-2421.64,0.00018082,2]
[331211397,1720134664762,-548.33,0.00018082,2]
[331211398,1720134664771,-2331.12,0.00018082,2]
[331211399,1720134664781,-535.1,0.00018082,2]
[331211400,1720134664791,-992.31,0.00018082,2]
[331211401,1720134664802,-500.0,0.00018082,2]
[331211402,1720134664811,-500.0,0.00018082,2]
[331211403,1720134664820,-500.0,0.00018082,2]
[331211404,1720134664829,-595.54,0.00018082,2]
[331211405,1720134664839,-500.0,0.00018082,2]
[331211406,1720134664849,-878.92,0.00018082,2]
[331211407,1720134664858,-2562.9,0.00018082,2]
[331211408,1720134664868,-500.0,0.00018082,2]
[331211409,1720134664878,-898.22,0.00018082,2]
[331211410,1720134664888,-500.0,0.00018082,2]
[331211411,1720134664899,-500.0,0.00018082,2]
[331211412,1720134664910,-1359.2,0.00018082,2]
[331211413,1720134664920,-500.0,0.00018082,2]
[331211414,1720134664930,-516.68,0.00018082,2]
[331211415,1720134664940,-1799.29,0.00018082,2]
[331211416,1720134664951,-649.1,0.00018082,2]
[331211417,1720134664961,-5473.98,0.00018082,2]
[331211418,1720134664970,-500.0,0.00018354,2]
[331211419,1720134664980,-500.0,0.00018354,2]
[331211420,1720134664990,-876.25,0.00018355,2]
[331211421,1720134664999,-718.94,0.00018355,2]
[331211422,1720134665008,-4546.0,0.00018356,2]
[331211423,1720134665019,-507.49,0.00018356,2]
[331211424,1720134665029,-500.0,0.00018356,2]
[331211425,1720134665039,-591.07,0.00018356,2]
[331211426,1720134665049,-1105.99,0.00018356,2]
[331211427,1720134665116,-500.0,0.00018356,2]
[331211428,1720134665127,-565.12,0.00018356,2]
[331211429,1720134665136,-2421.64,0.00018356,2]
[331211430,1720134665147,-548.33,0.00018356,2]
[331211431,1720134665157,-2331.12,0.00018356,2]
[331211432,1720134665166,-535.1,0.00018356,2]
[331211433,1720134665177,-992.31,0.00018356,2]
[331211434,1720134665187,-500.0,0.00018356,2]
[331211435,1720134665196,-500.0,0.00018356,2]
[331211436,1720134665206,-291.86,0.00018356,2]
[331211437,1720134665215,-595.54,0.00018356,2]
[331211438,1720134665225,-574.15097537,0.00018356,2]
[331211439,1720134665235,-878.92,0.00018356,2]
[331211440,1720134665244,-2562.9,0.00018356,2]
[331211441,1720134665254,-500.0,0.00018356,2]
[331211442,1720134665265,-898.22,0.00018356,2]
[331211443,1720134665274,-258.48,0.00018356,2]
[331211444,1720134665284,-500.0,0.00018356,2]
[331211445,1720134665293,-1359.2,0.00018356,2]
[331211446,1720134665303,-500.0,0.00018356,2]
[331211447,1720134665312,-516.68,0.00018356,2]
[331211448,1720134665322,-1799.29,0.00018356,2]
[331211449,1720134665331,-649.1,0.00018356,2]
[331211450,1720134665341,-5473.98,0.00018356,2]
[331211451,1720134665351,-166.666666,0.00018362,2]
[331211452,1720134665360,-500.0,0.00018628,2]
[331211453,1720134665370,-500.0,0.00018628,2]
[331211454,1720134665380,-876.25,0.00018629,2]
[331211455,1720134665389,-718.94,0.00018629,2]
[331211456,1720134665400,-4743.66,0.0001863,2]
[331211457,1720134665410,-507.49,0.0001863,2]
[331211458,1720134665419,-610.06,0.0001863,2]
[331211459,1720134665428,-591.07,0.0001863,2]
[331211460,1720134665438,-1105.99,0.0001863,2]
[331211461,1720134665448,-500.0,0.0001863,2]
[331211462,1720134665458,-565.12,0.0001863,2]
[331211463,1720134665469,-2421.64,0.0001863,2]
[331211464,1720134665478,-548.33,0.0001863,2]
[331211465,1720134665488,-2331.12,0.0001863,2]
[331211466,1720134665498,-535.1,0.0001863,2]
[331211467,1720134665508,-992.31,0.0001863,2]
[331211468,1720134665518,-380.62577396,0.0001863,2]
[331211469,1720134665528,-500.0,0.0001863,2]
[331211470,1720134665537,-595.54,0.0001863,2]
[331211471,1720134665547,-878.92,0.0001863,2]
[331211472,1720134665557,-2562.9,0.0001863,2]
[331211473,1720134665566,-500.0,0.0001863,2]
[331211474,1720134665576,-898.22,0.0001863,2]
[331211475,1720134665585,-500.0,0.0001863,2]
[331211476,1720134665597,-1359.2,0.0001863,2]
[331211477,1720134665607,-500.0,0.0001863,2]
[331211478,1720134665617,-516.68,0.0001863,2]
[331211479,1720134665626,-1799.29,0.0001863,2]
[331211480,1720134665637,-649.1,0.0001863,2]
[331211481,1720134665647,-5473.98,0.0001863,2]
[331211482,1720134665656,-351.43,0.00018902,2]
[331211483,1720134665665,-500.0,0.00018902,2]
[331211484,1720134665678,-876.25,0.00018903,2]
[331211485,1720134665688,-718.94,0.00018903,2]
[331211486,1720134665697,-4743.66,0.00018904,2]
[331211487,1720134665706,-507.49,0.00018904,2]
[331211488,1720134665716,-591.07,0.00018904,2]
[331211489,1720134665725,-1105.99,0.00018904,2]
[331211490,1720134665734,-500.0,0.00018904,2]
[331211491,1720134665744,-565.12,0.00018904,2]
[331211492,1720134665754,-2421.64,0.00018904,2]
[331211493,1720134665763,-548.33,0.00018904,2]
[331211494,1720134665772,-2331.12,0.00018904,2]
[331211495,1720134665784,-535.1,0.00018904,2]
[331211496,1720134665793,-992.31,0.00018904,2]
[331211497,1720134665802,-500.0,0.00018904,2]
[331211498,1720134665811,-595.54,0.00018904,2]
[331211499,1720134665820,-878.92,0.00018904,2]
[331211500,1720134665830,-2562.9,0.00018904,2]
[331211501,1720134665839,-500.0,0.00018904,2]
[331211502,1720134665848,-898.22,0.00018904,2]
[331211503,1720134665857,-500.0,0.00018904,2]
[331211504,1720134665866,-1359.2,0.00018904,2]
[331211505,1720134665875,-427.19,0.00018904,2]
[331211506,1720134665884,-516.68,0.00018904,2]
[331211507,1720134665893,-1799.29,0.00018904,2]
[331211508,1720134665904,-649.1,0.00018904,2]
[331211509,1720134665913,-5473.98,0.00018904,2]
[331211510,1720134665923,-250.0,0.00019041,2]
[331211511,1720134665932,-500.0,0.00019176,2]
[331211512,1720134665942,-876.25,0.00019177,2]
[331211513,1720134665952,-718.94,0.00019177,2]
[331211514,1720134665961,-4743.66,0.00019178,2]
[331211515,1720134665970,-507.49,0.00019178,2]
[331211516,1720134665980,-321.06,0.00019178,2]
[331211517,1720134665990,-321.06,0.00019178,2]
[331211518,1720134666000,-321.06,0.00019178,2]
[331211519,1720134666010,-321.06,0.00019178,2]
[331211520,1720134666073,-321.06,0.00019178,2]
[331211521,1720134666082,-321.06,0.00019178,2]
[331211522,1720134666091,-321.06,0.00019178,2]
[331211523,1720134666101,-321.06,0.00019178,2]
[331211524,1720134666111,-321.06,0.00019178,2]
[331211525,1720134666120,-321.06,0.00019178,2]
[331211526,1720134666130,-321.06,0.00019178,2]
[331211527,1720134666140,-321.06,0.00019178,2]
[331211528,1720134666151,-321.06,0.00019178,2]
[331211529,1720134666160,-321.06,0.00019178,2]
[331211530,1720134666170,-321.06,0.00019178,2]
[331211531,1720134666182,-321.06,0.00019178,2]
[331211532,1720134666192,-321.06,0.00019178,2]
[331211533,1720134666201,-321.06,0.00019178,2]
[331211534,1720134666211,-321.06,0.00019178,2]
[331211535,1720134666220,-321.06,0.00019178,2]
[331211536,1720134666229,-321.06,0.00019178,2]
[331211537,1720134666239,-591.07,0.00019178,2]
[331211538,1720134666248,-1105.99,0.00019178,2]
[331211539,1720134666257,-625.22,0.00019178,2]
[331211540,1720134666267,-565.12,0.00019178,2]
[331211541,1720134666276,-2421.64,0.00019178,2]
[331211542,1720134666285,-548.33,0.00019178,2]
[331211543,1720134666294,-2331.12,0.00019178,2]
[331211544,1720134666303,-535.1,0.00019178,2]
[331211545,1720134666312,-992.31,0.00019178,2]
[331211546,1720134666322,-500.0,0.00019178,2]
[331211547,1720134666331,-595.54,0.00019178,2]
[331211548,1720134666340,-878.92,0.00019178,2]
[331211549,1720134666349,-2562.9,0.00019178,2]
[331211550,1720134666358,-636.57,0.00019178,2]
[331211551,1720134666367,-898.22,0.00019178,2]
[331211552,1720134666376,-500.0,0.00019178,2]
[331211553,1720134666385,-1359.2,0.00019178,2]
[331211554,1720134666394,-516.68,0.00019178,2]
[331211555,1720134666406,-1799.29,0.00019178,2]
[331211556,1720134666415,-649.1,0.00019178,2]
[331211557,1720134666424,-5473.98,0.00019178,2]
[331211558,1720134666433,-168.210246,0.00019178,2]
[331211559,1720134666442,-219.917885,0.00019178,2]
[331211560,1720134666453,-440.5831188,0.00019178,4]
[331211561,1720134666462,-153.0,0.0001943,2]
[331211562,1720134666479,-500.0,0.0001945,2]
[331211563,1720134666496,-876.25,0.00019451,2]
[331211564,1720134666513,-718.94,0.00019451,2]
[331211565,1720134666531,-4743.66,0.00019452,2]
[331211566,1720134666552,-507.49,0.00019452,2]
[331211567,1720134666568,-321.06,0.00019452,2]
[331211568,1720134666588,-591.07,0.00019452,2]
[331211569,1720134666603,-1105.99,0.00019452,2]
[331211570,1720134666621,-565.12,0.00019452,2]
[331211571,1720134666641,-2421.64,0.00019452,2]
[331211572,1720134666660,-548.33,0.00019452,2]
[331211573,1720134666672,-2331.12,0.00019452,2]
[331211574,1720134666691,-535.1,0.00019452,2]
[331211575,1720134666705,-992.31,0.00019452,2]
[331211576,1720134666720,-438.71500568,0.00019452,2]
[331211577,1720134666734,-595.54,0.00019452,2]
[331211578,1720134666749,-878.92,0.00019452,2]
[331211579,1720134666765,-2562.9,0.00019452,2]
[331211580,1720134666780,-898.22,0.00019452,2]
[331211581,1720134666794,-500.0,0.00019452,2]
[331211582,1720134666808,-1359.2,0.00019452,2]
[331211583,1720134666823,-516.68,0.00019452,2]